{"text_format":"1","workbook":"xlsx","n_sheets":2,"sheets":["Schedule","Monthly view"],"not_rendered":{"charts":0,"images":0,"macros":1,"external_links":0,"defined_names":3,"comments":0,"pivot_tables":0},"unopened":[],"bounds":{"document_bytes":16777216,"sheet_cells":100000,"rows_first":2000,"rows_last":500,"rows_between":2000,"halvings":0,"cell_chars":16384,"cell_head_chars":4096},"cells_cut":0,"cells_raw":0,"read":"whole","date_system":"1900"}

{"sheet":"Schedule","index":0,"n_rows":61,"n_cols":8,"rows_kept":61,"cut":false,"hidden":false,"merged":[]}
[]
[null,"Title","Date and time","Time and Title",null,"Go to sheet Calendar"]
[null,"Procurement ","2016-11-02T13:00:00",{"$f":"TEXT(Table1[[#This Row],[Date and time]]-INT(Table1[[#This Row],[Date and time]]),\"t:mm AM/PM\")&\" - \"&Table1[[#This Row],[Title]]","v":"1:00 PM - Procurement "}]
[null,"Design","2016-11-02T17:00:00",{"$f":"TEXT(Table1[[#This Row],[Date and time]]-INT(Table1[[#This Row],[Date and time]]),\"t:mm AM/PM\")&\" - \"&Table1[[#This Row],[Title]]","v":"5:00 PM - Design"},null,null,"Every month on the 3rd:",{"$f":"IF(DAY(TODAY())>3,DATE(YEAR(TODAY()),MONTH(TODAY())+1,3)+11/24,DATE(YEAR(TODAY()),MONTH(TODAY()),3)+11/24)","v":"2017-08-03T11:00:00"}]
[null,"Manufacturing","2016-11-03T08:00:00",{"$f":"TEXT(Table1[[#This Row],[Date and time]]-INT(Table1[[#This Row],[Date and time]]),\"t:mm AM/PM\")&\" - \"&Table1[[#This Row],[Title]]","v":"8:00 AM - Manufacturing"},null,null,"Every Tuesday",{"$f":"TODAY()+IF(WEEKDAY(TODAY())<=3,3-WEEKDAY(TODAY()),(10-WEEKDAY(TODAY())))+15/24","v":"2017-07-18T15:00:00"}]
[null,"Company","2016-11-03T23:00:00",{"$f":"TEXT(Table1[[#This Row],[Date and time]]-INT(Table1[[#This Row],[Date and time]]),\"t:mm AM/PM\")&\" - \"&Table1[[#This Row],[Title]]","v":"11:00 PM - Company"}]
[null,"Skiing","2016-11-04T09:00:00",{"$f":"TEXT(Table1[[#This Row],[Date and time]]-INT(Table1[[#This Row],[Date and time]]),\"t:mm AM/PM\")&\" - \"&Table1[[#This Row],[Title]]","v":"9:00 AM - Skiing"}]
[null,"Dinner with friends","2016-11-05T19:00:00",{"$f":"TEXT(Table1[[#This Row],[Date and time]]-INT(Table1[[#This Row],[Date and time]]),\"t:mm AM/PM\")&\" - \"&Table1[[#This Row],[Title]]","v":"7:00 PM - Dinner with friends"}]
[null,"Order","2016-11-07T10:00:00",{"$f":"TEXT(Table1[[#This Row],[Date and time]]-INT(Table1[[#This Row],[Date and time]]),\"t:mm AM/PM\")&\" - \"&Table1[[#This Row],[Title]]","v":"10:00 AM - Order"}]
[null,"Lunch with John","2016-11-07T12:00:00",{"$f":"TEXT(Table1[[#This Row],[Date and time]]-INT(Table1[[#This Row],[Date and time]]),\"t:mm AM/PM\")&\" - \"&Table1[[#This Row],[Title]]","v":"12:00 PM - Lunch with John"}]
[null,"Doctor","2016-11-08T08:00:00",{"$f":"TEXT(Table1[[#This Row],[Date and time]]-INT(Table1[[#This Row],[Date and time]]),\"t:mm AM/PM\")&\" - \"&Table1[[#This Row],[Title]]","v":"8:00 AM - Doctor"}]
[null,"Buy grocerys","2016-11-08T17:00:00",{"$f":"TEXT(Table1[[#This Row],[Date and time]]-INT(Table1[[#This Row],[Date and time]]),\"t:mm AM/PM\")&\" - \"&Table1[[#This Row],[Title]]","v":"5:00 PM - Buy grocerys"}]
[null,"Order parts","2016-11-09T09:00:00",{"$f":"TEXT(Table1[[#This Row],[Date and time]]-INT(Table1[[#This Row],[Date and time]]),\"t:mm AM/PM\")&\" - \"&Table1[[#This Row],[Title]]","v":"9:00 AM - Order parts"}]
[null,"Project","2016-11-09T17:00:00",{"$f":"TEXT(Table1[[#This Row],[Date and time]]-INT(Table1[[#This Row],[Date and time]]),\"t:mm AM/PM\")&\" - \"&Table1[[#This Row],[Title]]","v":"5:00 PM - Project"}]
[null,"Logistics","2016-11-09T19:00:00",{"$f":"TEXT(Table1[[#This Row],[Date and time]]-INT(Table1[[#This Row],[Date and time]]),\"t:mm AM/PM\")&\" - \"&Table1[[#This Row],[Title]]","v":"7:00 PM - Logistics"}]
[null,"Meeting","2016-11-10T03:00:00",{"$f":"TEXT(Table1[[#This Row],[Date and time]]-INT(Table1[[#This Row],[Date and time]]),\"t:mm AM/PM\")&\" - \"&Table1[[#This Row],[Title]]","v":"3:00 AM - Meeting"}]
[null,"Planning","2016-11-10T13:00:00",{"$f":"TEXT(Table1[[#This Row],[Date and time]]-INT(Table1[[#This Row],[Date and time]]),\"t:mm AM/PM\")&\" - \"&Table1[[#This Row],[Title]]","v":"1:00 PM - Planning"}]
[null,"Buy dog food","2016-11-12T08:00:00",{"$f":"TEXT(Table1[[#This Row],[Date and time]]-INT(Table1[[#This Row],[Date and time]]),\"t:mm AM/PM\")&\" - \"&Table1[[#This Row],[Title]]","v":"8:00 AM - Buy dog food"}]
[null,"Order food","2016-11-12T10:00:00",{"$f":"TEXT(Table1[[#This Row],[Date and time]]-INT(Table1[[#This Row],[Date and time]]),\"t:mm AM/PM\")&\" - \"&Table1[[#This Row],[Title]]","v":"10:00 AM - Order food"}]
[null,"Call friend","2016-11-12T22:00:00",{"$f":"TEXT(Table1[[#This Row],[Date and time]]-INT(Table1[[#This Row],[Date and time]]),\"t:mm AM/PM\")&\" - \"&Table1[[#This Row],[Title]]","v":"10:00 PM - Call friend"}]
[null,"Workout","2016-11-13T06:00:00",{"$f":"TEXT(Table1[[#This Row],[Date and time]]-INT(Table1[[#This Row],[Date and time]]),\"t:mm AM/PM\")&\" - \"&Table1[[#This Row],[Title]]","v":"6:00 AM - Workout"},null,null,null,{"$f":"WEEKDAY(TODAY())","v":3}]
[null,"Buy stuff","2016-11-13T16:00:00",{"$f":"TEXT(Table1[[#This Row],[Date and time]]-INT(Table1[[#This Row],[Date and time]]),\"t:mm AM/PM\")&\" - \"&Table1[[#This Row],[Title]]","v":"4:00 PM - Buy stuff"}]
[null,"Get a life","2016-11-14T14:00:00",{"$f":"TEXT(Table1[[#This Row],[Date and time]]-INT(Table1[[#This Row],[Date and time]]),\"t:mm AM/PM\")&\" - \"&Table1[[#This Row],[Title]]","v":"2:00 PM - Get a life"}]
[null,"TV","2016-11-14T20:00:00",{"$f":"TEXT(Table1[[#This Row],[Date and time]]-INT(Table1[[#This Row],[Date and time]]),\"t:mm AM/PM\")&\" - \"&Table1[[#This Row],[Title]]","v":"8:00 PM - TV"}]
[null,"Read book","2016-11-14T22:00:00",{"$f":"TEXT(Table1[[#This Row],[Date and time]]-INT(Table1[[#This Row],[Date and time]]),\"t:mm AM/PM\")&\" - \"&Table1[[#This Row],[Title]]","v":"10:00 PM - Read book"}]
[null,"Restaurant","2016-11-15T19:00:00",{"$f":"TEXT(Table1[[#This Row],[Date and time]]-INT(Table1[[#This Row],[Date and time]]),\"t:mm AM/PM\")&\" - \"&Table1[[#This Row],[Title]]","v":"7:00 PM - Restaurant"}]
[null,"Go to work","2016-11-16T08:00:00",{"$f":"TEXT(Table1[[#This Row],[Date and time]]-INT(Table1[[#This Row],[Date and time]]),\"t:mm AM/PM\")&\" - \"&Table1[[#This Row],[Title]]","v":"8:00 AM - Go to work"}]
[null,"Buy guitar","2016-11-16T14:00:00",{"$f":"TEXT(Table1[[#This Row],[Date and time]]-INT(Table1[[#This Row],[Date and time]]),\"t:mm AM/PM\")&\" - \"&Table1[[#This Row],[Title]]","v":"2:00 PM - Buy guitar"}]
[null,"Cook meal","2016-11-16T20:00:00",{"$f":"TEXT(Table1[[#This Row],[Date and time]]-INT(Table1[[#This Row],[Date and time]]),\"t:mm AM/PM\")&\" - \"&Table1[[#This Row],[Title]]","v":"8:00 PM - Cook meal"}]
[null,"Sleep","2016-11-16T22:00:00",{"$f":"TEXT(Table1[[#This Row],[Date and time]]-INT(Table1[[#This Row],[Date and time]]),\"t:mm AM/PM\")&\" - \"&Table1[[#This Row],[Title]]","v":"10:00 PM - Sleep"}]
[null,"Wake up","2016-11-17T05:00:00",{"$f":"TEXT(Table1[[#This Row],[Date and time]]-INT(Table1[[#This Row],[Date and time]]),\"t:mm AM/PM\")&\" - \"&Table1[[#This Row],[Title]]","v":"5:00 AM - Wake up"}]
[null,"TGIF","2016-11-18T05:00:00",{"$f":"TEXT(Table1[[#This Row],[Date and time]]-INT(Table1[[#This Row],[Date and time]]),\"t:mm AM/PM\")&\" - \"&Table1[[#This Row],[Title]]","v":"5:00 AM - TGIF"}]
[null,"Visit powerplant","2016-11-18T08:00:00",{"$f":"TEXT(Table1[[#This Row],[Date and time]]-INT(Table1[[#This Row],[Date and time]]),\"t:mm AM/PM\")&\" - \"&Table1[[#This Row],[Title]]","v":"8:00 AM - Visit powerplant"}]
[null,"Sleep all day","2016-11-19T03:00:00",{"$f":"TEXT(Table1[[#This Row],[Date and time]]-INT(Table1[[#This Row],[Date and time]]),\"t:mm AM/PM\")&\" - \"&Table1[[#This Row],[Title]]","v":"3:00 AM - Sleep all day"}]
[null,"Ice Cream","2016-11-20T13:00:00",{"$f":"TEXT(Table1[[#This Row],[Date and time]]-INT(Table1[[#This Row],[Date and time]]),\"t:mm AM/PM\")&\" - \"&Table1[[#This Row],[Title]]","v":"1:00 PM - Ice Cream"}]
[null,"Let me out","2016-11-21T10:00:00",{"$f":"TEXT(Table1[[#This Row],[Date and time]]-INT(Table1[[#This Row],[Date and time]]),\"t:mm AM/PM\")&\" - \"&Table1[[#This Row],[Title]]","v":"10:00 AM - Let me out"}]
[null,"Call Doktor","2016-11-21T16:00:00",{"$f":"TEXT(Table1[[#This Row],[Date and time]]-INT(Table1[[#This Row],[Date and time]]),\"t:mm AM/PM\")&\" - \"&Table1[[#This Row],[Title]]","v":"4:00 PM - Call Doktor"}]
[null,"Examine my head","2016-11-22T13:00:00",{"$f":"TEXT(Table1[[#This Row],[Date and time]]-INT(Table1[[#This Row],[Date and time]]),\"t:mm AM/PM\")&\" - \"&Table1[[#This Row],[Title]]","v":"1:00 PM - Examine my head"}]
[null,"Find keys","2016-11-22T14:00:00",{"$f":"TEXT(Table1[[#This Row],[Date and time]]-INT(Table1[[#This Row],[Date and time]]),\"t:mm AM/PM\")&\" - \"&Table1[[#This Row],[Title]]","v":"2:00 PM - Find keys"}]
[null,"Find my walker","2016-11-22T18:00:00",{"$f":"TEXT(Table1[[#This Row],[Date and time]]-INT(Table1[[#This Row],[Date and time]]),\"t:mm AM/PM\")&\" - \"&Table1[[#This Row],[Title]]","v":"6:00 PM - Find my walker"}]
[null,"medicine?","2016-11-23T11:00:00",{"$f":"TEXT(Table1[[#This Row],[Date and time]]-INT(Table1[[#This Row],[Date and time]]),\"t:mm AM/PM\")&\" - \"&Table1[[#This Row],[Title]]","v":"11:00 AM - medicine?"}]
[null,"Church","2016-11-23T19:00:00",{"$f":"TEXT(Table1[[#This Row],[Date and time]]-INT(Table1[[#This Row],[Date and time]]),\"t:mm AM/PM\")&\" - \"&Table1[[#This Row],[Title]]","v":"7:00 PM - Church"}]
[null,"Bills","2016-11-24T08:00:00",{"$f":"TEXT(Table1[[#This Row],[Date and time]]-INT(Table1[[#This Row],[Date and time]]),\"t:mm AM/PM\")&\" - \"&Table1[[#This Row],[Title]]","v":"8:00 AM - Bills"}]
[null,"I forgot","2016-11-24T10:00:00",{"$f":"TEXT(Table1[[#This Row],[Date and time]]-INT(Table1[[#This Row],[Date and time]]),\"t:mm AM/PM\")&\" - \"&Table1[[#This Row],[Title]]","v":"10:00 AM - I forgot"}]
[null,"Meeting","2016-11-24T13:00:00",{"$f":"TEXT(Table1[[#This Row],[Date and time]]-INT(Table1[[#This Row],[Date and time]]),\"t:mm AM/PM\")&\" - \"&Table1[[#This Row],[Title]]","v":"1:00 PM - Meeting"}]
[null,"Go for a walk","2016-11-24T14:00:00",{"$f":"TEXT(Table1[[#This Row],[Date and time]]-INT(Table1[[#This Row],[Date and time]]),\"t:mm AM/PM\")&\" - \"&Table1[[#This Row],[Title]]","v":"2:00 PM - Go for a walk"}]
[null,"Drive home","2016-11-24T15:00:00",{"$f":"TEXT(Table1[[#This Row],[Date and time]]-INT(Table1[[#This Row],[Date and time]]),\"t:mm AM/PM\")&\" - \"&Table1[[#This Row],[Title]]","v":"3:00 PM - Drive home"}]
[null,"Eat","2016-11-24T16:00:00",{"$f":"TEXT(Table1[[#This Row],[Date and time]]-INT(Table1[[#This Row],[Date and time]]),\"t:mm AM/PM\")&\" - \"&Table1[[#This Row],[Title]]","v":"4:00 PM - Eat"}]
[null,"Buy food","2016-11-24T18:00:00",{"$f":"TEXT(Table1[[#This Row],[Date and time]]-INT(Table1[[#This Row],[Date and time]]),\"t:mm AM/PM\")&\" - \"&Table1[[#This Row],[Title]]","v":"6:00 PM - Buy food"}]
[null,"Garbage","2016-11-24T20:00:00",{"$f":"TEXT(Table1[[#This Row],[Date and time]]-INT(Table1[[#This Row],[Date and time]]),\"t:mm AM/PM\")&\" - \"&Table1[[#This Row],[Title]]","v":"8:00 PM - Garbage"}]
[null,"Am I sleeping?","2016-11-25T01:00:00",{"$f":"TEXT(Table1[[#This Row],[Date and time]]-INT(Table1[[#This Row],[Date and time]]),\"t:mm AM/PM\")&\" - \"&Table1[[#This Row],[Title]]","v":"1:00 AM - Am I sleeping?"}]
[null,"Don't think so","2016-11-26T01:00:00",{"$f":"TEXT(Table1[[#This Row],[Date and time]]-INT(Table1[[#This Row],[Date and time]]),\"t:mm AM/PM\")&\" - \"&Table1[[#This Row],[Title]]","v":"1:00 AM - Don't think so"}]
[null,"Lunch with Tim","2016-11-26T12:00:00",{"$f":"TEXT(Table1[[#This Row],[Date and time]]-INT(Table1[[#This Row],[Date and time]]),\"t:mm AM/PM\")&\" - \"&Table1[[#This Row],[Title]]","v":"12:00 PM - Lunch with Tim"}]
[null,"Be happy","2016-11-27T11:00:00",{"$f":"TEXT(Table1[[#This Row],[Date and time]]-INT(Table1[[#This Row],[Date and time]]),\"t:mm AM/PM\")&\" - \"&Table1[[#This Row],[Title]]","v":"11:00 AM - Be happy"}]
[null,"Get up","2016-11-28T06:00:00",{"$f":"TEXT(Table1[[#This Row],[Date and time]]-INT(Table1[[#This Row],[Date and time]]),\"t:mm AM/PM\")&\" - \"&Table1[[#This Row],[Title]]","v":"6:00 AM - Get up"}]
[null,"Eat breakfast","2016-11-28T07:00:00",{"$f":"TEXT(Table1[[#This Row],[Date and time]]-INT(Table1[[#This Row],[Date and time]]),\"t:mm AM/PM\")&\" - \"&Table1[[#This Row],[Title]]","v":"7:00 AM - Eat breakfast"}]
[null,"Travel","2016-11-28T18:00:00",{"$f":"TEXT(Table1[[#This Row],[Date and time]]-INT(Table1[[#This Row],[Date and time]]),\"t:mm AM/PM\")&\" - \"&Table1[[#This Row],[Title]]","v":"6:00 PM - Travel"}]
[null,"Find hotel","2016-11-29T06:00:00",{"$f":"TEXT(Table1[[#This Row],[Date and time]]-INT(Table1[[#This Row],[Date and time]]),\"t:mm AM/PM\")&\" - \"&Table1[[#This Row],[Title]]","v":"6:00 AM - Find hotel"}]
[null,"Call Laura","2016-11-29T14:00:00",{"$f":"TEXT(Table1[[#This Row],[Date and time]]-INT(Table1[[#This Row],[Date and time]]),\"t:mm AM/PM\")&\" - \"&Table1[[#This Row],[Title]]","v":"2:00 PM - Call Laura"}]
[null,"Test","2016-11-30T14:45:00",{"$f":"TEXT(Table1[[#This Row],[Date and time]]-INT(Table1[[#This Row],[Date and time]]),\"t:mm AM/PM\")&\" - \"&Table1[[#This Row],[Title]]","v":"2:45 PM - Test"}]
[null,"Recurring task",null,{"$f":"TEXT(Table1[[#This Row],[Date and time]]-INT(Table1[[#This Row],[Date and time]]),\"t:mm AM/PM\")&\" - \"&Table1[[#This Row],[Title]]","v":"12:00 AM - Recurring task"}]

{"sheet":"Monthly view","index":1,"n_rows":67,"n_cols":14,"rows_kept":67,"cut":false,"hidden":false,"merged":[[39,6,48,6],[39,7,48,7],[50,1,59,1],[50,2,59,2],[50,3,59,3],[50,4,59,4],[50,5,59,5],[50,6,59,6],[50,7,59,7],[39,1,48,1],[39,2,48,2],[39,3,48,3],[39,4,48,4],[39,5,48,5],[17,4,26,4],[17,5,26,5],[17,6,26,6],[17,7,26,7],[28,1,37,1],[28,2,37,2],[28,3,37,3],[28,4,37,4],[28,5,37,5],[28,6,37,6],[28,7,37,7],[6,3,15,3],[6,4,15,4],[6,5,15,5],[6,6,15,6],[6,7,15,7],[1,3,2,4],[17,1,26,1],[17,2,26,2],[17,3,26,3],[6,1,15,1],[6,2,15,2]]}
[]
[null,null,null,"2016-11-18",null,null,"Previous month","Next month"]
[null,"Go to sheet Schedule",null,null,null,null,null,null,null,"Selected date:","2016-11-06",null,"Add event:"]
[]
[null,"Sun","Mon","Tue","Wed","Thu","Fri","Sat",null,"Time","Title",null,"Time","Title"]
[null,{"$f":"DATE(YEAR(D2),MONTH(D2),1)-WEEKDAY(DATE(YEAR(D2),MONTH(D2),1))+1","v":"2016-10-30"},{"$f":"B6+1","v":"2016-10-31"},"2016-11-01","2016-11-02","2016-11-03","2016-11-04","2016-11-05",null,{"$f":"IFERROR(HYPERLINK(\"[Calendar-monthly-view3.xlsm]Schedule!$B$\"&MATCH(SMALL(IF('Monthly view'!$K$3=INT(Table1[Date and time]),Table1[Date and time],\"\"),ROW(A1)),Table1[Date and time],0)+2,SMALL(IF('Monthly view'!$K$3=INT(Table1[Date and time]),Table1[Date and time],\"\"),ROW(A1))),\"\")","v":""},{"$f":"IFERROR(INDEX(Table1[Title],SMALL(IF('Monthly view'!$K$3=INT(Table1[Date and time]),MATCH(ROW(Table1[Date and time]),ROW(Table1[Date and time])),\"\"),ROW(A1))),\"\")","v":""}]
[null,{"$f":"Lookup_concat(B6,Table1[Date and time],Table1[Time and Title])","v":""},{"$f":"Lookup_concat(C6,Table1[Date and time],Table1[Time and Title])","v":""},{"$f":"Lookup_concat(D6,Table1[Date and time],Table1[Time and Title])","v":""},{"$f":"Lookup_concat(E6,Table1[Date and time],Table1[Time and Title])","v":"1:00 PM - Procurement \r\n5:00 PM - Design\r\n"},{"$f":"Lookup_concat(F6,Table1[Date and time],Table1[Time and Title])","v":"8:00 AM - Manufacturing\r\n11:00 PM - Company\r\n"},{"$f":"Lookup_concat(G6,Table1[Date and time],Table1[Time and Title])","v":"9:00 AM - Skiing\r\n"},{"$f":"Lookup_concat(H6,Table1[Date and time],Table1[Time and Title])","v":"7:00 PM - Dinner with fri\r\n"},null,{"$f":"IFERROR(HYPERLINK(\"[Calendar-monthly-view3.xlsm]Schedule!$B$\"&MATCH(SMALL(IF('Monthly view'!$K$3=INT(Table1[Date and time]),Table1[Date and time],\"\"),ROW(A2)),Table1[Date and time],0)+2,SMALL(IF('Monthly view'!$K$3=INT(Table1[Date and time]),Table1[Date and time],\"\"),ROW(A2))),\"\")","v":""},{"$f":"IFERROR(INDEX(Table1[Title],SMALL(IF('Monthly view'!$K$3=INT(Table1[Date and time]),MATCH(ROW(Table1[Date and time]),ROW(Table1[Date and time])),\"\"),ROW(A2))),\"\")","v":""}]
[null,null,null,null,null,null,null,null,null,{"$f":"IFERROR(HYPERLINK(\"[Calendar-monthly-view3.xlsm]Schedule!$B$\"&MATCH(SMALL(IF('Monthly view'!$K$3=INT(Table1[Date and time]),Table1[Date and time],\"\"),ROW(A3)),Table1[Date and time],0)+2,SMALL(IF('Monthly view'!$K$3=INT(Table1[Date and time]),Table1[Date and time],\"\"),ROW(A3))),\"\")","v":""},{"$f":"IFERROR(INDEX(Table1[Title],SMALL(IF('Monthly view'!$K$3=INT(Table1[Date and time]),MATCH(ROW(Table1[Date and time]),ROW(Table1[Date and time])),\"\"),ROW(A3))),\"\")","v":""}]
[null,null,null,null,null,null,null,null,null,{"$f":"IFERROR(HYPERLINK(\"[Calendar-monthly-view3.xlsm]Schedule!$B$\"&MATCH(SMALL(IF('Monthly view'!$K$3=INT(Table1[Date and time]),Table1[Date and time],\"\"),ROW(A4)),Table1[Date and time],0)+2,SMALL(IF('Monthly view'!$K$3=INT(Table1[Date and time]),Table1[Date and time],\"\"),ROW(A4))),\"\")","v":""},{"$f":"IFERROR(INDEX(Table1[Title],SMALL(IF('Monthly view'!$K$3=INT(Table1[Date and time]),MATCH(ROW(Table1[Date and time]),ROW(Table1[Date and time])),\"\"),ROW(A4))),\"\")","v":""}]
[null,null,null,null,null,null,null,null,null,{"$f":"IFERROR(HYPERLINK(\"[Calendar-monthly-view3.xlsm]Schedule!$B$\"&MATCH(SMALL(IF('Monthly view'!$K$3=INT(Table1[Date and time]),Table1[Date and time],\"\"),ROW(A5)),Table1[Date and time],0)+2,SMALL(IF('Monthly view'!$K$3=INT(Table1[Date and time]),Table1[Date and time],\"\"),ROW(A5))),\"\")","v":""},{"$f":"IFERROR(INDEX(Table1[Title],SMALL(IF('Monthly view'!$K$3=INT(Table1[Date and time]),MATCH(ROW(Table1[Date and time]),ROW(Table1[Date and time])),\"\"),ROW(A5))),\"\")","v":""}]
[null,null,null,null,null,null,null,null,null,{"$f":"IFERROR(HYPERLINK(\"[Calendar-monthly-view3.xlsm]Schedule!$B$\"&MATCH(SMALL(IF('Monthly view'!$K$3=INT(Table1[Date and time]),Table1[Date and time],\"\"),ROW(A6)),Table1[Date and time],0)+2,SMALL(IF('Monthly view'!$K$3=INT(Table1[Date and time]),Table1[Date and time],\"\"),ROW(A6))),\"\")","v":""},{"$f":"IFERROR(INDEX(Table1[Title],SMALL(IF('Monthly view'!$K$3=INT(Table1[Date and time]),MATCH(ROW(Table1[Date and time]),ROW(Table1[Date and time])),\"\"),ROW(A6))),\"\")","v":""}]
[null,null,null,null,null,null,null,null,null,{"$f":"IFERROR(HYPERLINK(\"[Calendar-monthly-view3.xlsm]Schedule!$B$\"&MATCH(SMALL(IF('Monthly view'!$K$3=INT(Table1[Date and time]),Table1[Date and time],\"\"),ROW(A7)),Table1[Date and time],0)+2,SMALL(IF('Monthly view'!$K$3=INT(Table1[Date and time]),Table1[Date and time],\"\"),ROW(A7))),\"\")","v":""},{"$f":"IFERROR(INDEX(Table1[Title],SMALL(IF('Monthly view'!$K$3=INT(Table1[Date and time]),MATCH(ROW(Table1[Date and time]),ROW(Table1[Date and time])),\"\"),ROW(A7))),\"\")","v":""}]
[null,null,null,null,null,null,null,null,null,{"$f":"IFERROR(HYPERLINK(\"[Calendar-monthly-view3.xlsm]Schedule!$B$\"&MATCH(SMALL(IF('Monthly view'!$K$3=INT(Table1[Date and time]),Table1[Date and time],\"\"),ROW(A8)),Table1[Date and time],0)+2,SMALL(IF('Monthly view'!$K$3=INT(Table1[Date and time]),Table1[Date and time],\"\"),ROW(A8))),\"\")","v":""},{"$f":"IFERROR(INDEX(Table1[Title],SMALL(IF('Monthly view'!$K$3=INT(Table1[Date and time]),MATCH(ROW(Table1[Date and time]),ROW(Table1[Date and time])),\"\"),ROW(A8))),\"\")","v":""}]
[null,null,null,null,null,null,null,null,null,{"$f":"IFERROR(HYPERLINK(\"[Calendar-monthly-view3.xlsm]Schedule!$B$\"&MATCH(SMALL(IF('Monthly view'!$K$3=INT(Table1[Date and time]),Table1[Date and time],\"\"),ROW(A9)),Table1[Date and time],0)+2,SMALL(IF('Monthly view'!$K$3=INT(Table1[Date and time]),Table1[Date and time],\"\"),ROW(A9))),\"\")","v":""},{"$f":"IFERROR(INDEX(Table1[Title],SMALL(IF('Monthly view'!$K$3=INT(Table1[Date and time]),MATCH(ROW(Table1[Date and time]),ROW(Table1[Date and time])),\"\"),ROW(A9))),\"\")","v":""}]
[null,null,null,null,null,null,null,null,null,{"$f":"IFERROR(HYPERLINK(\"[Calendar-monthly-view3.xlsm]Schedule!$B$\"&MATCH(SMALL(IF('Monthly view'!$K$3=INT(Table1[Date and time]),Table1[Date and time],\"\"),ROW(A10)),Table1[Date and time],0)+2,SMALL(IF('Monthly view'!$K$3=INT(Table1[Date and time]),Table1[Date and time],\"\"),ROW(A10))),\"\")","v":""},{"$f":"IFERROR(INDEX(Table1[Title],SMALL(IF('Monthly view'!$K$3=INT(Table1[Date and time]),MATCH(ROW(Table1[Date and time]),ROW(Table1[Date and time])),\"\"),ROW(A10))),\"\")","v":""}]
[null,null,null,null,null,null,null,null,null,{"$f":"IFERROR(HYPERLINK(\"[Calendar-monthly-view3.xlsm]Schedule!$B$\"&MATCH(SMALL(IF('Monthly view'!$K$3=INT(Table1[Date and time]),Table1[Date and time],\"\"),ROW(A11)),Table1[Date and time],0)+2,SMALL(IF('Monthly view'!$K$3=INT(Table1[Date and time]),Table1[Date and time],\"\"),ROW(A11))),\"\")","v":""},{"$f":"IFERROR(INDEX(Table1[Title],SMALL(IF('Monthly view'!$K$3=INT(Table1[Date and time]),MATCH(ROW(Table1[Date and time]),ROW(Table1[Date and time])),\"\"),ROW(A11))),\"\")","v":""}]
[null,{"$f":"H6+1","v":"2016-11-06"},{"$f":"B17+1","v":"2016-11-07"},"2016-11-08","2016-11-09","2016-11-10","2016-11-11","2016-11-12",null,{"$f":"IFERROR(HYPERLINK(\"[Calendar-monthly-view3.xlsm]Schedule!$B$\"&MATCH(SMALL(IF('Monthly view'!$K$3=INT(Table1[Date and time]),Table1[Date and time],\"\"),ROW(A12)),Table1[Date and time],0)+2,SMALL(IF('Monthly view'!$K$3=INT(Table1[Date and time]),Table1[Date and time],\"\"),ROW(A12))),\"\")","v":""},{"$f":"IFERROR(INDEX(Table1[Title],SMALL(IF('Monthly view'!$K$3=INT(Table1[Date and time]),MATCH(ROW(Table1[Date and time]),ROW(Table1[Date and time])),\"\"),ROW(A12))),\"\")","v":""}]
[null,{"$f":"Lookup_concat(B17,Table1[Date and time],Table1[Time and Title])","v":""},{"$f":"Lookup_concat(C17,Table1[Date and time],Table1[Time and Title])","v":"10:00 AM - Order\r\n12:00 PM - Lunch with Joh\r\n"},{"$f":"Lookup_concat(D17,Table1[Date and time],Table1[Time and Title])","v":"8:00 AM - Doctor\r\n5:00 PM - Buy grocerys\r\n"},{"$f":"Lookup_concat(E17,Table1[Date and time],Table1[Time and Title])","v":"9:00 AM - Order parts\r\n5:00 PM - Project\r\n7:00 PM - Logistics\r\n"},{"$f":"Lookup_concat(F17,Table1[Date and time],Table1[Time and Title])","v":"3:00 AM - Meeting\r\n1:00 PM - Planning\r\n"},{"$f":"Lookup_concat(G17,Table1[Date and time],Table1[Time and Title])","v":""},{"$f":"Lookup_concat(H17,Table1[Date and time],Table1[Time and Title])","v":"8:00 AM - Buy dog food\r\n10:00 AM - Order food\r\n10:00 PM - Call friend\r\n"},null,{"$f":"IFERROR(HYPERLINK(\"[Calendar-monthly-view3.xlsm]Schedule!$B$\"&MATCH(SMALL(IF('Monthly view'!$K$3=INT(Table1[Date and time]),Table1[Date and time],\"\"),ROW(A13)),Table1[Date and time],0)+2,SMALL(IF('Monthly view'!$K$3=INT(Table1[Date and time]),Table1[Date and time],\"\"),ROW(A13))),\"\")","v":""},{"$f":"IFERROR(INDEX(Table1[Title],SMALL(IF('Monthly view'!$K$3=INT(Table1[Date and time]),MATCH(ROW(Table1[Date and time]),ROW(Table1[Date and time])),\"\"),ROW(A13))),\"\")","v":""}]
[null,null,null,null,null,null,null,null,null,{"$f":"IFERROR(HYPERLINK(\"[Calendar-monthly-view3.xlsm]Schedule!$B$\"&MATCH(SMALL(IF('Monthly view'!$K$3=INT(Table1[Date and time]),Table1[Date and time],\"\"),ROW(A14)),Table1[Date and time],0)+2,SMALL(IF('Monthly view'!$K$3=INT(Table1[Date and time]),Table1[Date and time],\"\"),ROW(A14))),\"\")","v":""},{"$f":"IFERROR(INDEX(Table1[Title],SMALL(IF('Monthly view'!$K$3=INT(Table1[Date and time]),MATCH(ROW(Table1[Date and time]),ROW(Table1[Date and time])),\"\"),ROW(A14))),\"\")","v":""}]
[null,null,null,null,null,null,null,null,null,{"$f":"IFERROR(HYPERLINK(\"[Calendar-monthly-view3.xlsm]Schedule!$B$\"&MATCH(SMALL(IF('Monthly view'!$K$3=INT(Table1[Date and time]),Table1[Date and time],\"\"),ROW(A15)),Table1[Date and time],0)+2,SMALL(IF('Monthly view'!$K$3=INT(Table1[Date and time]),Table1[Date and time],\"\"),ROW(A15))),\"\")","v":""},{"$f":"IFERROR(INDEX(Table1[Title],SMALL(IF('Monthly view'!$K$3=INT(Table1[Date and time]),MATCH(ROW(Table1[Date and time]),ROW(Table1[Date and time])),\"\"),ROW(A15))),\"\")","v":""}]
[null,null,null,null,null,null,null,null,null,{"$f":"IFERROR(HYPERLINK(\"[Calendar-monthly-view3.xlsm]Schedule!$B$\"&MATCH(SMALL(IF('Monthly view'!$K$3=INT(Table1[Date and time]),Table1[Date and time],\"\"),ROW(A16)),Table1[Date and time],0)+2,SMALL(IF('Monthly view'!$K$3=INT(Table1[Date and time]),Table1[Date and time],\"\"),ROW(A16))),\"\")","v":""},{"$f":"IFERROR(INDEX(Table1[Title],SMALL(IF('Monthly view'!$K$3=INT(Table1[Date and time]),MATCH(ROW(Table1[Date and time]),ROW(Table1[Date and time])),\"\"),ROW(A16))),\"\")","v":""}]
[null,null,null,null,null,null,null,null,null,{"$f":"IFERROR(HYPERLINK(\"[Calendar-monthly-view3.xlsm]Schedule!$B$\"&MATCH(SMALL(IF('Monthly view'!$K$3=INT(Table1[Date and time]),Table1[Date and time],\"\"),ROW(A17)),Table1[Date and time],0)+2,SMALL(IF('Monthly view'!$K$3=INT(Table1[Date and time]),Table1[Date and time],\"\"),ROW(A17))),\"\")","v":""},{"$f":"IFERROR(INDEX(Table1[Title],SMALL(IF('Monthly view'!$K$3=INT(Table1[Date and time]),MATCH(ROW(Table1[Date and time]),ROW(Table1[Date and time])),\"\"),ROW(A17))),\"\")","v":""}]
[null,null,null,null,null,null,null,null,null,{"$f":"IFERROR(HYPERLINK(\"[Calendar-monthly-view3.xlsm]Schedule!$B$\"&MATCH(SMALL(IF('Monthly view'!$K$3=INT(Table1[Date and time]),Table1[Date and time],\"\"),ROW(A18)),Table1[Date and time],0)+2,SMALL(IF('Monthly view'!$K$3=INT(Table1[Date and time]),Table1[Date and time],\"\"),ROW(A18))),\"\")","v":""},{"$f":"IFERROR(INDEX(Table1[Title],SMALL(IF('Monthly view'!$K$3=INT(Table1[Date and time]),MATCH(ROW(Table1[Date and time]),ROW(Table1[Date and time])),\"\"),ROW(A18))),\"\")","v":""}]
[null,null,null,null,null,null,null,null,null,{"$f":"IFERROR(HYPERLINK(\"[Calendar-monthly-view3.xlsm]Schedule!$B$\"&MATCH(SMALL(IF('Monthly view'!$K$3=INT(Table1[Date and time]),Table1[Date and time],\"\"),ROW(A19)),Table1[Date and time],0)+2,SMALL(IF('Monthly view'!$K$3=INT(Table1[Date and time]),Table1[Date and time],\"\"),ROW(A19))),\"\")","v":""},{"$f":"IFERROR(INDEX(Table1[Title],SMALL(IF('Monthly view'!$K$3=INT(Table1[Date and time]),MATCH(ROW(Table1[Date and time]),ROW(Table1[Date and time])),\"\"),ROW(A19))),\"\")","v":""}]
[null,null,null,null,null,null,null,null,null,{"$f":"IFERROR(HYPERLINK(\"[Calendar-monthly-view3.xlsm]Schedule!$B$\"&MATCH(SMALL(IF('Monthly view'!$K$3=INT(Table1[Date and time]),Table1[Date and time],\"\"),ROW(A20)),Table1[Date and time],0)+2,SMALL(IF('Monthly view'!$K$3=INT(Table1[Date and time]),Table1[Date and time],\"\"),ROW(A20))),\"\")","v":""},{"$f":"IFERROR(INDEX(Table1[Title],SMALL(IF('Monthly view'!$K$3=INT(Table1[Date and time]),MATCH(ROW(Table1[Date and time]),ROW(Table1[Date and time])),\"\"),ROW(A20))),\"\")","v":""}]
[null,null,null,null,null,null,null,null,null,{"$f":"IFERROR(HYPERLINK(\"[Calendar-monthly-view3.xlsm]Schedule!$B$\"&MATCH(SMALL(IF('Monthly view'!$K$3=INT(Table1[Date and time]),Table1[Date and time],\"\"),ROW(A21)),Table1[Date and time],0)+2,SMALL(IF('Monthly view'!$K$3=INT(Table1[Date and time]),Table1[Date and time],\"\"),ROW(A21))),\"\")","v":""},{"$f":"IFERROR(INDEX(Table1[Title],SMALL(IF('Monthly view'!$K$3=INT(Table1[Date and time]),MATCH(ROW(Table1[Date and time]),ROW(Table1[Date and time])),\"\"),ROW(A21))),\"\")","v":""}]
[null,null,null,null,null,null,null,null,null,{"$f":"IFERROR(HYPERLINK(\"[Calendar-monthly-view3.xlsm]Schedule!$B$\"&MATCH(SMALL(IF('Monthly view'!$K$3=INT(Table1[Date and time]),Table1[Date and time],\"\"),ROW(A22)),Table1[Date and time],0)+2,SMALL(IF('Monthly view'!$K$3=INT(Table1[Date and time]),Table1[Date and time],\"\"),ROW(A22))),\"\")","v":""},{"$f":"IFERROR(INDEX(Table1[Title],SMALL(IF('Monthly view'!$K$3=INT(Table1[Date and time]),MATCH(ROW(Table1[Date and time]),ROW(Table1[Date and time])),\"\"),ROW(A22))),\"\")","v":""}]
[null,{"$f":"H17+1","v":"2016-11-13"},{"$f":"B28+1","v":"2016-11-14"},"2016-11-15","2016-11-16","2016-11-17","2016-11-18","2016-11-19",null,{"$f":"IFERROR(HYPERLINK(\"[Calendar-monthly-view3.xlsm]Schedule!$B$\"&MATCH(SMALL(IF('Monthly view'!$K$3=INT(Table1[Date and time]),Table1[Date and time],\"\"),ROW(A23)),Table1[Date and time],0)+2,SMALL(IF('Monthly view'!$K$3=INT(Table1[Date and time]),Table1[Date and time],\"\"),ROW(A23))),\"\")","v":""},{"$f":"IFERROR(INDEX(Table1[Title],SMALL(IF('Monthly view'!$K$3=INT(Table1[Date and time]),MATCH(ROW(Table1[Date and time]),ROW(Table1[Date and time])),\"\"),ROW(A23))),\"\")","v":""}]
[null,{"$f":"Lookup_concat(B28,Table1[Date and time],Table1[Time and Title])","v":"6:00 AM - Workout\r\n4:00 PM - Buy stuff\r\n"},{"$f":"Lookup_concat(C28,Table1[Date and time],Table1[Time and Title])","v":"2:00 PM - Get a life\r\n8:00 PM - TV\r\n10:00 PM - Read book\r\n"},{"$f":"Lookup_concat(D28,Table1[Date and time],Table1[Time and Title])","v":"7:00 PM - Restaurant\r\n"},{"$f":"Lookup_concat(E28,Table1[Date and time],Table1[Time and Title])","v":"8:00 AM - Go to work\r\n2:00 PM - Buy guitar\r\n8:00 PM - Cook meal\r\n10:00 PM - Sleep\r\n"},{"$f":"Lookup_concat(F28,Table1[Date and time],Table1[Time and Title])","v":"5:00 AM - Wake up\r\n"},{"$f":"Lookup_concat(G28,Table1[Date and time],Table1[Time and Title])","v":"5:00 AM - TGIF\r\n8:00 AM - Visit powerplan\r\n"},{"$f":"Lookup_concat(H28,Table1[Date and time],Table1[Time and Title])","v":"3:00 AM - Sleep all day\r\n"},null,{"$f":"IFERROR(HYPERLINK(\"[Calendar-monthly-view3.xlsm]Schedule!$B$\"&MATCH(SMALL(IF('Monthly view'!$K$3=INT(Table1[Date and time]),Table1[Date and time],\"\"),ROW(A24)),Table1[Date and time],0)+2,SMALL(IF('Monthly view'!$K$3=INT(Table1[Date and time]),Table1[Date and time],\"\"),ROW(A24))),\"\")","v":""},{"$f":"IFERROR(INDEX(Table1[Title],SMALL(IF('Monthly view'!$K$3=INT(Table1[Date and time]),MATCH(ROW(Table1[Date and time]),ROW(Table1[Date and time])),\"\"),ROW(A24))),\"\")","v":""}]
[null,null,null,null,null,null,null,null,null,{"$f":"IFERROR(HYPERLINK(\"[Calendar-monthly-view3.xlsm]Schedule!$B$\"&MATCH(SMALL(IF('Monthly view'!$K$3=INT(Table1[Date and time]),Table1[Date and time],\"\"),ROW(A25)),Table1[Date and time],0)+2,SMALL(IF('Monthly view'!$K$3=INT(Table1[Date and time]),Table1[Date and time],\"\"),ROW(A25))),\"\")","v":""},{"$f":"IFERROR(INDEX(Table1[Title],SMALL(IF('Monthly view'!$K$3=INT(Table1[Date and time]),MATCH(ROW(Table1[Date and time]),ROW(Table1[Date and time])),\"\"),ROW(A25))),\"\")","v":""}]
[null,null,null,null,null,null,null,null,null,{"$f":"IFERROR(HYPERLINK(\"[Calendar-monthly-view3.xlsm]Schedule!$B$\"&MATCH(SMALL(IF('Monthly view'!$K$3=INT(Table1[Date and time]),Table1[Date and time],\"\"),ROW(A26)),Table1[Date and time],0)+2,SMALL(IF('Monthly view'!$K$3=INT(Table1[Date and time]),Table1[Date and time],\"\"),ROW(A26))),\"\")","v":""},{"$f":"IFERROR(INDEX(Table1[Title],SMALL(IF('Monthly view'!$K$3=INT(Table1[Date and time]),MATCH(ROW(Table1[Date and time]),ROW(Table1[Date and time])),\"\"),ROW(A26))),\"\")","v":""}]
[null,null,null,null,null,null,null,null,null,{"$f":"IFERROR(HYPERLINK(\"[Calendar-monthly-view3.xlsm]Schedule!$B$\"&MATCH(SMALL(IF('Monthly view'!$K$3=INT(Table1[Date and time]),Table1[Date and time],\"\"),ROW(A27)),Table1[Date and time],0)+2,SMALL(IF('Monthly view'!$K$3=INT(Table1[Date and time]),Table1[Date and time],\"\"),ROW(A27))),\"\")","v":""},{"$f":"IFERROR(INDEX(Table1[Title],SMALL(IF('Monthly view'!$K$3=INT(Table1[Date and time]),MATCH(ROW(Table1[Date and time]),ROW(Table1[Date and time])),\"\"),ROW(A27))),\"\")","v":""}]
[null,null,null,null,null,null,null,null,null,{"$f":"IFERROR(HYPERLINK(\"[Calendar-monthly-view3.xlsm]Schedule!$B$\"&MATCH(SMALL(IF('Monthly view'!$K$3=INT(Table1[Date and time]),Table1[Date and time],\"\"),ROW(A28)),Table1[Date and time],0)+2,SMALL(IF('Monthly view'!$K$3=INT(Table1[Date and time]),Table1[Date and time],\"\"),ROW(A28))),\"\")","v":""},{"$f":"IFERROR(INDEX(Table1[Title],SMALL(IF('Monthly view'!$K$3=INT(Table1[Date and time]),MATCH(ROW(Table1[Date and time]),ROW(Table1[Date and time])),\"\"),ROW(A28))),\"\")","v":""}]
[null,null,null,null,null,null,null,null,null,{"$f":"IFERROR(HYPERLINK(\"[Calendar-monthly-view3.xlsm]Schedule!$B$\"&MATCH(SMALL(IF('Monthly view'!$K$3=INT(Table1[Date and time]),Table1[Date and time],\"\"),ROW(A29)),Table1[Date and time],0)+2,SMALL(IF('Monthly view'!$K$3=INT(Table1[Date and time]),Table1[Date and time],\"\"),ROW(A29))),\"\")","v":""},{"$f":"IFERROR(INDEX(Table1[Title],SMALL(IF('Monthly view'!$K$3=INT(Table1[Date and time]),MATCH(ROW(Table1[Date and time]),ROW(Table1[Date and time])),\"\"),ROW(A29))),\"\")","v":""}]
[null,null,null,null,null,null,null,null,null,{"$f":"IFERROR(HYPERLINK(\"[Calendar-monthly-view3.xlsm]Schedule!$B$\"&MATCH(SMALL(IF('Monthly view'!$K$3=INT(Table1[Date and time]),Table1[Date and time],\"\"),ROW(A30)),Table1[Date and time],0)+2,SMALL(IF('Monthly view'!$K$3=INT(Table1[Date and time]),Table1[Date and time],\"\"),ROW(A30))),\"\")","v":""},{"$f":"IFERROR(INDEX(Table1[Title],SMALL(IF('Monthly view'!$K$3=INT(Table1[Date and time]),MATCH(ROW(Table1[Date and time]),ROW(Table1[Date and time])),\"\"),ROW(A30))),\"\")","v":""}]
[null,null,null,null,null,null,null,null,null,{"$f":"IFERROR(HYPERLINK(\"[Calendar-monthly-view3.xlsm]Schedule!$B$\"&MATCH(SMALL(IF('Monthly view'!$K$3=INT(Table1[Date and time]),Table1[Date and time],\"\"),ROW(A31)),Table1[Date and time],0)+2,SMALL(IF('Monthly view'!$K$3=INT(Table1[Date and time]),Table1[Date and time],\"\"),ROW(A31))),\"\")","v":""},{"$f":"IFERROR(INDEX(Table1[Title],SMALL(IF('Monthly view'!$K$3=INT(Table1[Date and time]),MATCH(ROW(Table1[Date and time]),ROW(Table1[Date and time])),\"\"),ROW(A31))),\"\")","v":""}]
[null,null,null,null,null,null,null,null,null,{"$f":"IFERROR(HYPERLINK(\"[Calendar-monthly-view3.xlsm]Schedule!$B$\"&MATCH(SMALL(IF('Monthly view'!$K$3=INT(Table1[Date and time]),Table1[Date and time],\"\"),ROW(A32)),Table1[Date and time],0)+2,SMALL(IF('Monthly view'!$K$3=INT(Table1[Date and time]),Table1[Date and time],\"\"),ROW(A32))),\"\")","v":""},{"$f":"IFERROR(INDEX(Table1[Title],SMALL(IF('Monthly view'!$K$3=INT(Table1[Date and time]),MATCH(ROW(Table1[Date and time]),ROW(Table1[Date and time])),\"\"),ROW(A32))),\"\")","v":""}]
[null,null,null,null,null,null,null,null,null,{"$f":"IFERROR(HYPERLINK(\"[Calendar-monthly-view3.xlsm]Schedule!$B$\"&MATCH(SMALL(IF('Monthly view'!$K$3=INT(Table1[Date and time]),Table1[Date and time],\"\"),ROW(A33)),Table1[Date and time],0)+2,SMALL(IF('Monthly view'!$K$3=INT(Table1[Date and time]),Table1[Date and time],\"\"),ROW(A33))),\"\")","v":""},{"$f":"IFERROR(INDEX(Table1[Title],SMALL(IF('Monthly view'!$K$3=INT(Table1[Date and time]),MATCH(ROW(Table1[Date and time]),ROW(Table1[Date and time])),\"\"),ROW(A33))),\"\")","v":""}]
[null,{"$f":"H28+1","v":"2016-11-20"},{"$f":"B39+1","v":"2016-11-21"},"2016-11-22","2016-11-23","2016-11-24","2016-11-25","2016-11-26",null,{"$f":"IFERROR(HYPERLINK(\"[Calendar-monthly-view3.xlsm]Schedule!$B$\"&MATCH(SMALL(IF('Monthly view'!$K$3=INT(Table1[Date and time]),Table1[Date and time],\"\"),ROW(A34)),Table1[Date and time],0)+2,SMALL(IF('Monthly view'!$K$3=INT(Table1[Date and time]),Table1[Date and time],\"\"),ROW(A34))),\"\")","v":""},{"$f":"IFERROR(INDEX(Table1[Title],SMALL(IF('Monthly view'!$K$3=INT(Table1[Date and time]),MATCH(ROW(Table1[Date and time]),ROW(Table1[Date and time])),\"\"),ROW(A34))),\"\")","v":""}]
[null,{"$f":"Lookup_concat(B39,Table1[Date and time],Table1[Time and Title])","v":"1:00 PM - Ice Cream\r\n"},{"$f":"Lookup_concat(C39,Table1[Date and time],Table1[Time and Title])","v":"10:00 AM - Let me out\r\n4:00 PM - Call Doktor\r\n"},{"$f":"Lookup_concat(D39,Table1[Date and time],Table1[Time and Title])","v":"1:00 PM - Examine my head\r\n2:00 PM - Find keys\r\n6:00 PM - Find my walker\r\n"},{"$f":"Lookup_concat(E39,Table1[Date and time],Table1[Time and Title])","v":"11:00 AM - medicine?\r\n7:00 PM - Church\r\n"},{"$f":"Lookup_concat(F39,Table1[Date and time],Table1[Time and Title])","v":"8:00 AM - Bills\r\n10:00 AM - I forgot\r\n1:00 PM - Meeting\r\n2:00 PM - Go for a walk\r\n3:00 PM - Drive home\r\n...more..."},{"$f":"Lookup_concat(G39,Table1[Date and time],Table1[Time and Title])","v":"1:00 AM - Am I sleeping?\r\n"},{"$f":"Lookup_concat(H39,Table1[Date and time],Table1[Time and Title])","v":"1:00 AM - Don't think so\r\n12:00 PM - Lunch with Tim\r\n"}]
[]
[]
[]
[]
[]
[]
[]
[]
[]
[null,{"$f":"H39+1","v":"2016-11-27"},{"$f":"B50+1","v":"2016-11-28"},"2016-11-29","2016-11-30","2016-12-01","2016-12-02","2016-12-03"]
[null,{"$f":"Lookup_concat(B50,Table1[Date and time],Table1[Time and Title])","v":"11:00 AM - Be happy\r\n"},{"$f":"Lookup_concat(C50,Table1[Date and time],Table1[Time and Title])","v":"6:00 AM - Get up\r\n7:00 AM - Eat breakfast\r\n6:00 PM - Travel\r\n"},{"$f":"Lookup_concat(D50,Table1[Date and time],Table1[Time and Title])","v":"6:00 AM - Find hotel\r\n2:00 PM - Call Laura\r\n"},{"$f":"Lookup_concat(E50,Table1[Date and time],Table1[Time and Title])","v":"2:45 PM - Test\r\n"},{"$f":"Lookup_concat(F50,Table1[Date and time],Table1[Time and Title])","v":""},{"$f":"Lookup_concat(G50,Table1[Date and time],Table1[Time and Title])","v":""},{"$f":"Lookup_concat(H50,Table1[Date and time],Table1[Time and Title])","v":""}]
[]
[]
[]
[]
[]
[]
[]
[]
[]
[null,{"$f":"H50+1","v":"2016-12-04"},{"$f":"B61+1","v":"2016-12-05"},"2016-12-06","2016-12-07","2016-12-08","2016-12-09","2016-12-10"]
[]
[]
[]
[]
[]
[null,{"$f":"Lookup_concat(B61,Table1[Date and time],Table1[Time and Title])","v":""},{"$f":"Lookup_concat(C61,Table1[Date and time],Table1[Time and Title])","v":""},{"$f":"Lookup_concat(D61,Table1[Date and time],Table1[Time and Title])","v":""},{"$f":"Lookup_concat(E61,Table1[Date and time],Table1[Time and Title])","v":""},{"$f":"Lookup_concat(F61,Table1[Date and time],Table1[Time and Title])","v":""},{"$f":"Lookup_concat(G61,Table1[Date and time],Table1[Time and Title])","v":""},{"$f":"Lookup_concat(H61,Table1[Date and time],Table1[Time and Title])","v":""}]